Workbook

Sheet Liste
A1: Société | B1: Date | C1: Nombre acheté | D1: Nombre vendu | E1: Solde nombre
A2: Bidule | B2: 2017-01-10 | C2: 10 | E2: =C2 -> 10
A3: Chose | B3: 2017-04-27 | C3: 5 | E3: =C3 -> 5
A4: Machin | B4: 2018-09-02 | C4: 26 | E4: 26
A5: Tatol | B5: 2018-12-15 | C5: 4 | E5: 4
A6: Tasle | B6: 2019-03-01 | C6: 13 | E6: 13
A7: Machin | B7: 2019-05-17 | D7: =C4 -> 26 | E7: =C4-D7 -> 0
A8: Chose | B8: 2020-09-23 | C8: 14 | E8: =E3+C8 -> 19
A9: Bidule | B9: 2020-11-01 | D9: =E2 -> 10 | E9: =E2-D9 -> 0
A10: Bidule | B10: 2020-11-02 | C10: 12 | E10: =C10 -> 12
A11: Bidule | B11: 2021-03-29 | D11: 9 | E11: =E10-D11 -> 3
A12: Chose | B12: 2021-06-22 | D12: 19 | E12: =E8-D12 -> 0
A13: Tatol | B13: 2022-01-17 | C13: 2 | E13: =E5+C13 -> 6
A14: Machin | B14: 2022-05-04 | C14: 8 | E14: =C14 -> 8
A15: Schoups | B15: 2022-07-06 | C15: 4 | E15: =Tableau1[[#This Row],[Nombre acheté]] -> 4
A16: Schoups | B16: 2022-07-06 | D16: 4 | E16: =E15-Tableau1[[#This Row],[Nombre vendu]] -> 0
A17: Klary | B17: 2022-09-26 | C17: 13 | E17: =Tableau1[[#This Row],[Nombre acheté]] -> 13
A18: Shmorgul | B18: 2022-10-03 | C18: 6 | E18: =Tableau1[[#This Row],[Nombre acheté]] -> 6
A19: Plastoc | B19: 2022-10-12 | C19: 60 | E19: =Tableau1[[#This Row],[Nombre acheté]] -> 60
A20: Plastoc | B20: 2022-10-12 | D20: =E19 -> 60 | E20: =E19-Tableau1[[#This Row],[Nombre vendu]] -> 0
A21: Plastoc | B21: 2022-10-12 | C21: 19 | E21: =Tableau1[[#This Row],[Nombre acheté]] -> 19
A22: Plastoc | B22: 2022-10-12 | D22: =E21 -> 19 | E22: =E21-Tableau1[[#This Row],[Nombre vendu]] -> 0
A23: Plastoc | B23: 2022-10-12 | C23: 22 | E23: =Tableau1[[#This Row],[Nombre acheté]] -> 22
A24: Plastoc | B24: 2022-10-13 | D24: =E23 -> 22 | E24: =E23-Tableau1[[#This Row],[Nombre vendu]] -> 0
A25: Plastoc | B25: 2022-10-13 | C25: 15 | E25: =Tableau1[[#This Row],[Nombre acheté]] -> 15
A26: Plastoc | B26: 2022-10-16 | D26: 12 | E26: =E25-Tableau1[[#This Row],[Nombre vendu]] -> 3
A27: Schoups | B27: 2022-10-20 | C27: 5 | E27: =Tableau1[[#This Row],[Nombre acheté]] -> 5

Sheet Achats
A1: Achats | B1: 1 | C1: 2 | D1: 3 | E1: 4 | F1: 5
A2: =INDEX(Tableau1[Société],MATCH(0,COUNTIF($A$1:A1,Tableau1[Société]),0)) -> Bidule | B2: =SMALL((Tableau1[Société]=$A2)*(Tableau1[Date]),COUNTA(Tableau1[Société])-COUNTIF(Tableau1[Société],$A2)+1) -> 2017-01-10 | C2: =IFERROR(SMALL((Tableau1[Société]=$A2)*(Tableau1[Date])*(Tableau1[Date]>Ventes!B2),COUNTA(Tableau1[Société])-COUNTIFS(Tableau1[Société],$A2,Tableau1[Date],">"&Ventes!B2)+1),"") -> 2020-11-02 | D2: =IFERROR(SMALL((Tableau1[Société]=$A2)*(Tableau1[Date])*(Tableau1[Date]>Ventes!C2),COUNTA(Tableau1[Société])-COUNTIFS(Tableau1[Société],$A2,Tableau1[Date],">"&Ventes!C2)+1),"") ->  | E2: =IFERROR(SMALL((Tableau1[Société]=$A2)*(Tableau1[Date])*(Tableau1[Date]>Ventes!D2),COUNTA(Tableau1[Société])-COUNTIFS(Tableau1[Société],$A2,Tableau1[Date],">"&Ventes!D2)+1),"") ->  | F2: =IFERROR(SMALL((Tableau1[Société]=$A2)*(Tableau1[Date])*(Tableau1[Date]>Ventes!E2),COUNTA(Tableau1[Société])-COUNTIFS(Tableau1[Société],$A2,Tableau1[Date],">"&Ventes!E2)+1),"") -> 
A3: =INDEX(Tableau1[Société],MATCH(0,COUNTIF($A$1:A2,Tableau1[Société]),0)) -> Chose | B3: =SMALL((Tableau1[Société]=$A3)*(Tableau1[Date]),COUNTA(Tableau1[Société])-COUNTIF(Tableau1[Société],$A3)+1) -> 2017-04-27 | C3: =IFERROR(SMALL((Tableau1[Société]=$A3)*(Tableau1[Date])*(Tableau1[Date]>Ventes!B3),COUNTA(Tableau1[Société])-COUNTIFS(Tableau1[Société],$A3,Tableau1[Date],">"&Ventes!B3)+1),"") ->  | D3: =IFERROR(SMALL((Tableau1[Société]=$A3)*(Tableau1[Date])*(Tableau1[Date]>Ventes!C3),COUNTA(Tableau1[Société])-COUNTIFS(Tableau1[Société],$A3,Tableau1[Date],">"&Ventes!C3)+1),"") ->  | E3: =IFERROR(SMALL((Tableau1[Société]=$A3)*(Tableau1[Date])*(Tableau1[Date]>Ventes!D3),COUNTA(Tableau1[Société])-COUNTIFS(Tableau1[Société],$A3,Tableau1[Date],">"&Ventes!D3)+1),"") ->  | F3: =IFERROR(SMALL((Tableau1[Société]=$A3)*(Tableau1[Date])*(Tableau1[Date]>Ventes!E3),COUNTA(Tableau1[Société])-COUNTIFS(Tableau1[Société],$A3,Tableau1[Date],">"&Ventes!E3)+1),"") -> 
A4: =INDEX(Tableau1[Société],MATCH(0,COUNTIF($A$1:A3,Tableau1[Société]),0)) -> Machin | B4: =SMALL((Tableau1[Société]=$A4)*(Tableau1[Date]),COUNTA(Tableau1[Société])-COUNTIF(Tableau1[Société],$A4)+1) -> 2018-09-02 | C4: =IFERROR(SMALL((Tableau1[Société]=$A4)*(Tableau1[Date])*(Tableau1[Date]>Ventes!B4),COUNTA(Tableau1[Société])-COUNTIFS(Tableau1[Société],$A4,Tableau1[Date],">"&Ventes!B4)+1),"") -> 2022-05-04 | D4: =IFERROR(SMALL((Tableau1[Société]=$A4)*(Tableau1[Date])*(Tableau1[Date]>Ventes!C4),COUNTA(Tableau1[Société])-COUNTIFS(Tableau1[Société],$A4,Tableau1[Date],">"&Ventes!C4)+1),"") ->  | E4: =IFERROR(SMALL((Tableau1[Société]=$A4)*(Tableau1[Date])*(Tableau1[Date]>Ventes!D4),COUNTA(Tableau1[Société])-COUNTIFS(Tableau1[Société],$A4,Tableau1[Date],">"&Ventes!D4)+1),"") ->  | F4: =IFERROR(SMALL((Tableau1[Société]=$A4)*(Tableau1[Date])*(Tableau1[Date]>Ventes!E4),COUNTA(Tableau1[Société])-COUNTIFS(Tableau1[Société],$A4,Tableau1[Date],">"&Ventes!E4)+1),"") -> 
A5: =INDEX(Tableau1[Société],MATCH(0,COUNTIF($A$1:A4,Tableau1[Société]),0)) -> Tatol | B5: =SMALL((Tableau1[Société]=$A5)*(Tableau1[Date]),COUNTA(Tableau1[Société])-COUNTIF(Tableau1[Société],$A5)+1) -> 2018-12-15 | C5: =IFERROR(SMALL((Tableau1[Société]=$A5)*(Tableau1[Date])*(Tableau1[Date]>Ventes!B5),COUNTA(Tableau1[Société])-COUNTIFS(Tableau1[Société],$A5,Tableau1[Date],">"&Ventes!B5)+1),"") ->  | D5: =IFERROR(SMALL((Tableau1[Société]=$A5)*(Tableau1[Date])*(Tableau1[Date]>Ventes!C5),COUNTA(Tableau1[Société])-COUNTIFS(Tableau1[Société],$A5,Tableau1[Date],">"&Ventes!C5)+1),"") ->  | E5: =IFERROR(SMALL((Tableau1[Société]=$A5)*(Tableau1[Date])*(Tableau1[Date]>Ventes!D5),COUNTA(Tableau1[Société])-COUNTIFS(Tableau1[Société],$A5,Tableau1[Date],">"&Ventes!D5)+1),"") ->  | F5: =IFERROR(SMALL((Tableau1[Société]=$A5)*(Tableau1[Date])*(Tableau1[Date]>Ventes!E5),COUNTA(Tableau1[Société])-COUNTIFS(Tableau1[Société],$A5,Tableau1[Date],">"&Ventes!E5)+1),"") -> 
A6: =INDEX(Tableau1[Société],MATCH(0,COUNTIF($A$1:A5,Tableau1[Société]),0)) -> Tasle | B6: =SMALL((Tableau1[Société]=$A6)*(Tableau1[Date]),COUNTA(Tableau1[Société])-COUNTIF(Tableau1[Société],$A6)+1) -> 2019-03-01 | C6: =IFERROR(SMALL((Tableau1[Société]=$A6)*(Tableau1[Date])*(Tableau1[Date]>Ventes!B6),COUNTA(Tableau1[Société])-COUNTIFS(Tableau1[Société],$A6,Tableau1[Date],">"&Ventes!B6)+1),"") ->  | D6: =IFERROR(SMALL((Tableau1[Société]=$A6)*(Tableau1[Date])*(Tableau1[Date]>Ventes!C6),COUNTA(Tableau1[Société])-COUNTIFS(Tableau1[Société],$A6,Tableau1[Date],">"&Ventes!C6)+1),"") ->  | E6: =IFERROR(SMALL((Tableau1[Société]=$A6)*(Tableau1[Date])*(Tableau1[Date]>Ventes!D6),COUNTA(Tableau1[Société])-COUNTIFS(Tableau1[Société],$A6,Tableau1[Date],">"&Ventes!D6)+1),"") ->  | F6: =IFERROR(SMALL((Tableau1[Société]=$A6)*(Tableau1[Date])*(Tableau1[Date]>Ventes!E6),COUNTA(Tableau1[Société])-COUNTIFS(Tableau1[Société],$A6,Tableau1[Date],">"&Ventes!E6)+1),"") -> 
A7: =INDEX(Tableau1[Société],MATCH(0,COUNTIF($A$1:A6,Tableau1[Société]),0)) -> Schoups | B7: =SMALL((Tableau1[Société]=$A7)*(Tableau1[Date]),COUNTA(Tableau1[Société])-COUNTIF(Tableau1[Société],$A7)+1) -> 2022-07-06 | C7: =IFERROR(SMALL((Tableau1[Société]=$A7)*(Tableau1[Date])*(Tableau1[Date]>Ventes!B7),COUNTA(Tableau1[Société])-COUNTIFS(Tableau1[Société],$A7,Tableau1[Date],">"&Ventes!B7)+1),"") -> 2022-10-20 | D7: =IFERROR(SMALL((Tableau1[Société]=$A7)*(Tableau1[Date])*(Tableau1[Date]>Ventes!C7),COUNTA(Tableau1[Société])-COUNTIFS(Tableau1[Société],$A7,Tableau1[Date],">"&Ventes!C7)+1),"") ->  | E7: =IFERROR(SMALL((Tableau1[Société]=$A7)*(Tableau1[Date])*(Tableau1[Date]>Ventes!D7),COUNTA(Tableau1[Société])-COUNTIFS(Tableau1[Société],$A7,Tableau1[Date],">"&Ventes!D7)+1),"") ->  | F7: =IFERROR(SMALL((Tableau1[Société]=$A7)*(Tableau1[Date])*(Tableau1[Date]>Ventes!E7),COUNTA(Tableau1[Société])-COUNTIFS(Tableau1[Société],$A7,Tableau1[Date],">"&Ventes!E7)+1),"") -> 
A8: =INDEX(Tableau1[Société],MATCH(0,COUNTIF($A$1:A7,Tableau1[Société]),0)) -> Klary | B8: =SMALL((Tableau1[Société]=$A8)*(Tableau1[Date]),COUNTA(Tableau1[Société])-COUNTIF(Tableau1[Société],$A8)+1) -> 2022-09-26 | C8: =IFERROR(SMALL((Tableau1[Société]=$A8)*(Tableau1[Date])*(Tableau1[Date]>Ventes!B8),COUNTA(Tableau1[Société])-COUNTIFS(Tableau1[Société],$A8,Tableau1[Date],">"&Ventes!B8)+1),"") ->  | D8: =IFERROR(SMALL((Tableau1[Société]=$A8)*(Tableau1[Date])*(Tableau1[Date]>Ventes!C8),COUNTA(Tableau1[Société])-COUNTIFS(Tableau1[Société],$A8,Tableau1[Date],">"&Ventes!C8)+1),"") ->  | E8: =IFERROR(SMALL((Tableau1[Société]=$A8)*(Tableau1[Date])*(Tableau1[Date]>Ventes!D8),COUNTA(Tableau1[Société])-COUNTIFS(Tableau1[Société],$A8,Tableau1[Date],">"&Ventes!D8)+1),"") ->  | F8: =IFERROR(SMALL((Tableau1[Société]=$A8)*(Tableau1[Date])*(Tableau1[Date]>Ventes!E8),COUNTA(Tableau1[Société])-COUNTIFS(Tableau1[Société],$A8,Tableau1[Date],">"&Ventes!E8)+1),"") -> 
A9: =INDEX(Tableau1[Société],MATCH(0,COUNTIF($A$1:A8,Tableau1[Société]),0)) -> Shmorgul | B9: =SMALL((Tableau1[Société]=$A9)*(Tableau1[Date]),COUNTA(Tableau1[Société])-COUNTIF(Tableau1[Société],$A9)+1) -> 2022-10-03 | C9: =IFERROR(SMALL((Tableau1[Société]=$A9)*(Tableau1[Date])*(Tableau1[Date]>Ventes!B9),COUNTA(Tableau1[Société])-COUNTIFS(Tableau1[Société],$A9,Tableau1[Date],">"&Ventes!B9)+1),"") ->  | D9: =IFERROR(SMALL((Tableau1[Société]=$A9)*(Tableau1[Date])*(Tableau1[Date]>Ventes!C9),COUNTA(Tableau1[Société])-COUNTIFS(Tableau1[Société],$A9,Tableau1[Date],">"&Ventes!C9)+1),"") ->  | E9: =IFERROR(SMALL((Tableau1[Société]=$A9)*(Tableau1[Date])*(Tableau1[Date]>Ventes!D9),COUNTA(Tableau1[Société])-COUNTIFS(Tableau1[Société],$A9,Tableau1[Date],">"&Ventes!D9)+1),"") ->  | F9: =IFERROR(SMALL((Tableau1[Société]=$A9)*(Tableau1[Date])*(Tableau1[Date]>Ventes!E9),COUNTA(Tableau1[Société])-COUNTIFS(Tableau1[Société],$A9,Tableau1[Date],">"&Ventes!E9)+1),"") -> 
A10: =INDEX(Tableau1[Société],MATCH(0,COUNTIF($A$1:A9,Tableau1[Société]),0)) -> Plastoc | B10: =SMALL((Tableau1[Société]=$A10)*(Tableau1[Date]),COUNTA(Tableau1[Société])-COUNTIF(Tableau1[Société],$A10)+1) -> 2022-10-12 | C10: =IFERROR(SMALL((Tableau1[Société]=$A10)*(Tableau1[Date])*(Tableau1[Date]>Ventes!B10),COUNTA(Tableau1[Société])-COUNTIFS(Tableau1[Société],$A10,Tableau1[Date],">"&Ventes!B10)+1),"") -> 2022-10-13 | D10: =IFERROR(SMALL((Tableau1[Société]=$A10)*(Tableau1[Date])*(Tableau1[Date]>Ventes!C10),COUNTA(Tableau1[Société])-COUNTIFS(Tableau1[Société],$A10,Tableau1[Date],">"&Ventes!C10)+1),"") -> 2022-10-13 | E10: =IFERROR(SMALL((Tableau1[Société]=$A10)*(Tableau1[Date])*(Tableau1[Date]>Ventes!D10),COUNTA(Tableau1[Société])-COUNTIFS(Tableau1[Société],$A10,Tableau1[Date],">"&Ventes!D10)+1),"") -> 2022-10-13 | F10: =IFERROR(SMALL((Tableau1[Société]=$A10)*(Tableau1[Date])*(Tableau1[Date]>Ventes!E10),COUNTA(Tableau1[Société])-COUNTIFS(Tableau1[Société],$A10,Tableau1[Date],">"&Ventes!E10)+1),"") -> 2022-10-16 | G10: =IFERROR(SMALL((Tableau1[Société]=$A10)*(Tableau1[Date])*(Tableau1[Date]>Ventes!F10),COUNTA(Tableau1[Société])-COUNTIFS(Tableau1[Société],$A10,Tableau1[Date],">"&Ventes!F10)+1),"") ->  | H10: => rectifier formule, C10 doit afficher 12-10-22 et 1 achat en trop, le dernier date du 13-10

Sheet Ventes
A1: Ventes | B1: 1 | C1: 2 | D1: 3 | E1: 4 | F1: 5 | G1: 6
A2: =INDEX(Tableau1[Société],MATCH(0,COUNTIF($A$1:A1,Tableau1[Société]),0)) -> Bidule | B2: =IFERROR(SMALL((Tableau1[Société]=$A2)*(Tableau1[Solde nombre]=0)*(Tableau1[Date]),COUNTA(Tableau1[Société])-COUNTIFS(Tableau1[Société],$A2,Tableau1[Solde nombre],"0" )+B$1),TODAY()) -> 2020-11-01 | C2: =IF(B2=TODAY(),"",IF(AND(IFERROR(SMALL((Tableau1[Société]=$A2)*(Tableau1[Solde nombre]=0)*(Tableau1[Date]),COUNTA(Tableau1[Société])-COUNTIFS(Tableau1[Société],$A2,Tableau1[Solde nombre],"0")+C$1),"")="",LOOKUP(2,1/(Tableau1[Société]=$A2),Tableau1[Solde nombre])>0),TODAY(),IFERROR(SMALL((Tableau1[Société]=$A2)*(Tableau1[Solde nombre]=0)*(Tableau1[Date]),COUNTA(Tableau1[Société])-COUNTIFS(Tableau1[Société],$A2,Tableau1[Solde nombre],"0")+C$1),""))) -> 2022-10-25 | D2: =IF(C2="","",IF(C2=TODAY(),"",IF(AND(IFERROR(SMALL((Tableau1[Société]=$A2)*(Tableau1[Solde nombre]=0)*(Tableau1[Date]),COUNTA(Tableau1[Société])-COUNTIFS(Tableau1[Société],$A2,Tableau1[Solde nombre],"0")+C$1),"")="",LOOKUP(2,1/(Tableau1[Société]=$A2),Tableau1[Solde nombre])>0),TODAY(),SMALL((Tableau1[Société]=$A2)*(Tableau1[Solde nombre]=0)*(Tableau1[Date]),COUNTA(Tableau1[Société])-COUNTIFS(Tableau1[Société],$A2,Tableau1[Solde nombre],"0")+C$1)))) ->  | E2: =IF(D2="","",IF(D2=TODAY(),"",IF(AND(IFERROR(SMALL((Tableau1[Société]=$A2)*(Tableau1[Solde nombre]=0)*(Tableau1[Date]),COUNTA(Tableau1[Société])-COUNTIFS(Tableau1[Société],$A2,Tableau1[Solde nombre],"0")+D$1),"")="",LOOKUP(2,1/(Tableau1[Société]=$A2),Tableau1[Solde nombre])>0),TODAY(),SMALL((Tableau1[Société]=$A2)*(Tableau1[Solde nombre]=0)*(Tableau1[Date]),COUNTA(Tableau1[Société])-COUNTIFS(Tableau1[Société],$A2,Tableau1[Solde nombre],"0")+D$1)))) ->  | F2: =IF(E2="","",IF(E2=TODAY(),"",IF(AND(IFERROR(SMALL((Tableau1[Société]=$A2)*(Tableau1[Solde nombre]=0)*(Tableau1[Date]),COUNTA(Tableau1[Société])-COUNTIFS(Tableau1[Société],$A2,Tableau1[Solde nombre],"0")+E$1),"")="",LOOKUP(2,1/(Tableau1[Société]=$A2),Tableau1[Solde nombre])>0),TODAY(),SMALL((Tableau1[Société]=$A2)*(Tableau1[Solde nombre]=0)*(Tableau1[Date]),COUNTA(Tableau1[Société])-COUNTIFS(Tableau1[Société],$A2,Tableau1[Solde nombre],"0")+E$1)))) ->  | G2: =IF(F2="","",IF(F2=TODAY(),"",IF(AND(IFERROR(SMALL((Tableau1[Société]=$A2)*(Tableau1[Solde nombre]=0)*(Tableau1[Date]),COUNTA(Tableau1[Société])-COUNTIFS(Tableau1[Société],$A2,Tableau1[Solde nombre],"0")+F$1),"")="",LOOKUP(2,1/(Tableau1[Société]=$A2),Tableau1[Solde nombre])>0),TODAY(),SMALL((Tableau1[Société]=$A2)*(Tableau1[Solde nombre]=0)*(Tableau1[Date]),COUNTA(Tableau1[Société])-COUNTIFS(Tableau1[Société],$A2,Tableau1[Solde nombre],"0")+F$1)))) -> 
A3: =INDEX(Tableau1[Société],MATCH(0,COUNTIF($A$1:A2,Tableau1[Société]),0)) -> Chose | B3: =IFERROR(SMALL((Tableau1[Société]=$A3)*(Tableau1[Solde nombre]=0)*(Tableau1[Date]),COUNTA(Tableau1[Société])-COUNTIFS(Tableau1[Société],$A3,Tableau1[Solde nombre],"0" )+B$1),TODAY()) -> 2021-06-22 | C3: =IF(B3=TODAY(),"",IF(AND(IFERROR(SMALL((Tableau1[Société]=$A3)*(Tableau1[Solde nombre]=0)*(Tableau1[Date]),COUNTA(Tableau1[Société])-COUNTIFS(Tableau1[Société],$A3,Tableau1[Solde nombre],"0")+C$1),"")="",LOOKUP(2,1/(Tableau1[Société]=$A3),Tableau1[Solde nombre])>0),TODAY(),IFERROR(SMALL((Tableau1[Société]=$A3)*(Tableau1[Solde nombre]=0)*(Tableau1[Date]),COUNTA(Tableau1[Société])-COUNTIFS(Tableau1[Société],$A3,Tableau1[Solde nombre],"0")+C$1),""))) ->  | D3: =IF(C3="","",IF(C3=TODAY(),"",IF(AND(IFERROR(SMALL((Tableau1[Société]=$A3)*(Tableau1[Solde nombre]=0)*(Tableau1[Date]),COUNTA(Tableau1[Société])-COUNTIFS(Tableau1[Société],$A3,Tableau1[Solde nombre],"0")+C$1),"")="",LOOKUP(2,1/(Tableau1[Société]=$A3),Tableau1[Solde nombre])>0),TODAY(),SMALL((Tableau1[Société]=$A3)*(Tableau1[Solde nombre]=0)*(Tableau1[Date]),COUNTA(Tableau1[Société])-COUNTIFS(Tableau1[Société],$A3,Tableau1[Solde nombre],"0")+C$1)))) ->  | E3: =IF(D3="","",IF(D3=TODAY(),"",IF(AND(IFERROR(SMALL((Tableau1[Société]=$A3)*(Tableau1[Solde nombre]=0)*(Tableau1[Date]),COUNTA(Tableau1[Société])-COUNTIFS(Tableau1[Société],$A3,Tableau1[Solde nombre],"0")+D$1),"")="",LOOKUP(2,1/(Tableau1[Société]=$A3),Tableau1[Solde nombre])>0),TODAY(),SMALL((Tableau1[Société]=$A3)*(Tableau1[Solde nombre]=0)*(Tableau1[Date]),COUNTA(Tableau1[Société])-COUNTIFS(Tableau1[Société],$A3,Tableau1[Solde nombre],"0")+D$1)))) ->  | F3: =IF(E3="","",IF(E3=TODAY(),"",IF(AND(IFERROR(SMALL((Tableau1[Société]=$A3)*(Tableau1[Solde nombre]=0)*(Tableau1[Date]),COUNTA(Tableau1[Société])-COUNTIFS(Tableau1[Société],$A3,Tableau1[Solde nombre],"0")+E$1),"")="",LOOKUP(2,1/(Tableau1[Société]=$A3),Tableau1[Solde nombre])>0),TODAY(),SMALL((Tableau1[Société]=$A3)*(Tableau1[Solde nombre]=0)*(Tableau1[Date]),COUNTA(Tableau1[Société])-COUNTIFS(Tableau1[Société],$A3,Tableau1[Solde nombre],"0")+E$1)))) ->  | G3: =IF(F3="","",IF(F3=TODAY(),"",IF(AND(IFERROR(SMALL((Tableau1[Société]=$A3)*(Tableau1[Solde nombre]=0)*(Tableau1[Date]),COUNTA(Tableau1[Société])-COUNTIFS(Tableau1[Société],$A3,Tableau1[Solde nombre],"0")+F$1),"")="",LOOKUP(2,1/(Tableau1[Société]=$A3),Tableau1[Solde nombre])>0),TODAY(),SMALL((Tableau1[Société]=$A3)*(Tableau1[Solde nombre]=0)*(Tableau1[Date]),COUNTA(Tableau1[Société])-COUNTIFS(Tableau1[Société],$A3,Tableau1[Solde nombre],"0")+F$1)))) -> 
A4: =INDEX(Tableau1[Société],MATCH(0,COUNTIF($A$1:A3,Tableau1[Société]),0)) -> Machin | B4: =IFERROR(SMALL((Tableau1[Société]=$A4)*(Tableau1[Solde nombre]=0)*(Tableau1[Date]),COUNTA(Tableau1[Société])-COUNTIFS(Tableau1[Société],$A4,Tableau1[Solde nombre],"0" )+B$1),TODAY()) -> 2019-05-17 | C4: =IF(B4=TODAY(),"",IF(AND(IFERROR(SMALL((Tableau1[Société]=$A4)*(Tableau1[Solde nombre]=0)*(Tableau1[Date]),COUNTA(Tableau1[Société])-COUNTIFS(Tableau1[Société],$A4,Tableau1[Solde nombre],"0")+C$1),"")="",LOOKUP(2,1/(Tableau1[Société]=$A4),Tableau1[Solde nombre])>0),TODAY(),SMALL((Tableau1[Société]=$A4)*(Tableau1[Solde nombre]=0)*(Tableau1[Date]),COUNTA(Tableau1[Société])-COUNTIFS(Tableau1[Société],$A4,Tableau1[Solde nombre],"0")+C$1))) -> 2022-10-25 | D4: =IF(C4="","",IF(C4=TODAY(),"",IF(AND(IFERROR(SMALL((Tableau1[Société]=$A4)*(Tableau1[Solde nombre]=0)*(Tableau1[Date]),COUNTA(Tableau1[Société])-COUNTIFS(Tableau1[Société],$A4,Tableau1[Solde nombre],"0")+C$1),"")="",LOOKUP(2,1/(Tableau1[Société]=$A4),Tableau1[Solde nombre])>0),TODAY(),SMALL((Tableau1[Société]=$A4)*(Tableau1[Solde nombre]=0)*(Tableau1[Date]),COUNTA(Tableau1[Société])-COUNTIFS(Tableau1[Société],$A4,Tableau1[Solde nombre],"0")+C$1)))) ->  | E4: =IF(D4="","",IF(D4=TODAY(),"",IF(AND(IFERROR(SMALL((Tableau1[Société]=$A4)*(Tableau1[Solde nombre]=0)*(Tableau1[Date]),COUNTA(Tableau1[Société])-COUNTIFS(Tableau1[Société],$A4,Tableau1[Solde nombre],"0")+D$1),"")="",LOOKUP(2,1/(Tableau1[Société]=$A4),Tableau1[Solde nombre])>0),TODAY(),SMALL((Tableau1[Société]=$A4)*(Tableau1[Solde nombre]=0)*(Tableau1[Date]),COUNTA(Tableau1[Société])-COUNTIFS(Tableau1[Société],$A4,Tableau1[Solde nombre],"0")+D$1)))) ->  | F4: =IF(E4="","",IF(E4=TODAY(),"",IF(AND(IFERROR(SMALL((Tableau1[Société]=$A4)*(Tableau1[Solde nombre]=0)*(Tableau1[Date]),COUNTA(Tableau1[Société])-COUNTIFS(Tableau1[Société],$A4,Tableau1[Solde nombre],"0")+E$1),"")="",LOOKUP(2,1/(Tableau1[Société]=$A4),Tableau1[Solde nombre])>0),TODAY(),SMALL((Tableau1[Société]=$A4)*(Tableau1[Solde nombre]=0)*(Tableau1[Date]),COUNTA(Tableau1[Société])-COUNTIFS(Tableau1[Société],$A4,Tableau1[Solde nombre],"0")+E$1)))) ->  | G4: =IF(F4="","",IF(F4=TODAY(),"",IF(AND(IFERROR(SMALL((Tableau1[Société]=$A4)*(Tableau1[Solde nombre]=0)*(Tableau1[Date]),COUNTA(Tableau1[Société])-COUNTIFS(Tableau1[Société],$A4,Tableau1[Solde nombre],"0")+F$1),"")="",LOOKUP(2,1/(Tableau1[Société]=$A4),Tableau1[Solde nombre])>0),TODAY(),SMALL((Tableau1[Société]=$A4)*(Tableau1[Solde nombre]=0)*(Tableau1[Date]),COUNTA(Tableau1[Société])-COUNTIFS(Tableau1[Société],$A4,Tableau1[Solde nombre],"0")+F$1)))) -> 
A5: =INDEX(Tableau1[Société],MATCH(0,COUNTIF($A$1:A4,Tableau1[Société]),0)) -> Tatol | B5: =IFERROR(SMALL((Tableau1[Société]=$A5)*(Tableau1[Solde nombre]=0)*(Tableau1[Date]),COUNTA(Tableau1[Société])-COUNTIFS(Tableau1[Société],$A5,Tableau1[Solde nombre],"0" )+B$1),TODAY()) -> 2022-10-25 | C5: =IF(B5=TODAY(),"",IF(AND(IFERROR(SMALL((Tableau1[Société]=$A5)*(Tableau1[Solde nombre]=0)*(Tableau1[Date]),COUNTA(Tableau1[Société])-COUNTIFS(Tableau1[Société],$A5,Tableau1[Solde nombre],"0")+C$1),"")="",LOOKUP(2,1/(Tableau1[Société]=$A5),Tableau1[Solde nombre])>0),TODAY(),SMALL((Tableau1[Société]=$A5)*(Tableau1[Solde nombre]=0)*(Tableau1[Date]),COUNTA(Tableau1[Société])-COUNTIFS(Tableau1[Société],$A5,Tableau1[Solde nombre],"0")+C$1))) ->  | D5: =IF(C5="","",IF(C5=TODAY(),"",IF(AND(IFERROR(SMALL((Tableau1[Société]=$A5)*(Tableau1[Solde nombre]=0)*(Tableau1[Date]),COUNTA(Tableau1[Société])-COUNTIFS(Tableau1[Société],$A5,Tableau1[Solde nombre],"0")+C$1),"")="",LOOKUP(2,1/(Tableau1[Société]=$A5),Tableau1[Solde nombre])>0),TODAY(),SMALL((Tableau1[Société]=$A5)*(Tableau1[Solde nombre]=0)*(Tableau1[Date]),COUNTA(Tableau1[Société])-COUNTIFS(Tableau1[Société],$A5,Tableau1[Solde nombre],"0")+C$1)))) ->  | E5: =IF(D5="","",IF(D5=TODAY(),"",IF(AND(IFERROR(SMALL((Tableau1[Société]=$A5)*(Tableau1[Solde nombre]=0)*(Tableau1[Date]),COUNTA(Tableau1[Société])-COUNTIFS(Tableau1[Société],$A5,Tableau1[Solde nombre],"0")+D$1),"")="",LOOKUP(2,1/(Tableau1[Société]=$A5),Tableau1[Solde nombre])>0),TODAY(),SMALL((Tableau1[Société]=$A5)*(Tableau1[Solde nombre]=0)*(Tableau1[Date]),COUNTA(Tableau1[Société])-COUNTIFS(Tableau1[Société],$A5,Tableau1[Solde nombre],"0")+D$1)))) ->  | F5: =IF(E5="","",IF(E5=TODAY(),"",IF(AND(IFERROR(SMALL((Tableau1[Société]=$A5)*(Tableau1[Solde nombre]=0)*(Tableau1[Date]),COUNTA(Tableau1[Société])-COUNTIFS(Tableau1[Société],$A5,Tableau1[Solde nombre],"0")+E$1),"")="",LOOKUP(2,1/(Tableau1[Société]=$A5),Tableau1[Solde nombre])>0),TODAY(),SMALL((Tableau1[Société]=$A5)*(Tableau1[Solde nombre]=0)*(Tableau1[Date]),COUNTA(Tableau1[Société])-COUNTIFS(Tableau1[Société],$A5,Tableau1[Solde nombre],"0")+E$1)))) ->  | G5: =IF(F5="","",IF(F5=TODAY(),"",IF(AND(IFERROR(SMALL((Tableau1[Société]=$A5)*(Tableau1[Solde nombre]=0)*(Tableau1[Date]),COUNTA(Tableau1[Société])-COUNTIFS(Tableau1[Société],$A5,Tableau1[Solde nombre],"0")+F$1),"")="",LOOKUP(2,1/(Tableau1[Société]=$A5),Tableau1[Solde nombre])>0),TODAY(),SMALL((Tableau1[Société]=$A5)*(Tableau1[Solde nombre]=0)*(Tableau1[Date]),COUNTA(Tableau1[Société])-COUNTIFS(Tableau1[Société],$A5,Tableau1[Solde nombre],"0")+F$1)))) -> 
A6: =INDEX(Tableau1[Société],MATCH(0,COUNTIF($A$1:A5,Tableau1[Société]),0)) -> Tasle | B6: =IFERROR(SMALL((Tableau1[Société]=$A6)*(Tableau1[Solde nombre]=0)*(Tableau1[Date]),COUNTA(Tableau1[Société])-COUNTIFS(Tableau1[Société],$A6,Tableau1[Solde nombre],"0" )+B$1),TODAY()) -> 2022-10-25 | C6: =IF(B6=TODAY(),"",IF(AND(IFERROR(SMALL((Tableau1[Société]=$A6)*(Tableau1[Solde nombre]=0)*(Tableau1[Date]),COUNTA(Tableau1[Société])-COUNTIFS(Tableau1[Société],$A6,Tableau1[Solde nombre],"0")+C$1),"")="",LOOKUP(2,1/(Tableau1[Société]=$A6),Tableau1[Solde nombre])>0),TODAY(),SMALL((Tableau1[Société]=$A6)*(Tableau1[Solde nombre]=0)*(Tableau1[Date]),COUNTA(Tableau1[Société])-COUNTIFS(Tableau1[Société],$A6,Tableau1[Solde nombre],"0")+C$1))) ->  | D6: =IF(C6="","",IF(C6=TODAY(),"",IF(AND(IFERROR(SMALL((Tableau1[Société]=$A6)*(Tableau1[Solde nombre]=0)*(Tableau1[Date]),COUNTA(Tableau1[Société])-COUNTIFS(Tableau1[Société],$A6,Tableau1[Solde nombre],"0")+C$1),"")="",LOOKUP(2,1/(Tableau1[Société]=$A6),Tableau1[Solde nombre])>0),TODAY(),SMALL((Tableau1[Société]=$A6)*(Tableau1[Solde nombre]=0)*(Tableau1[Date]),COUNTA(Tableau1[Société])-COUNTIFS(Tableau1[Société],$A6,Tableau1[Solde nombre],"0")+C$1)))) ->  | E6: =IF(D6="","",IF(D6=TODAY(),"",IF(AND(IFERROR(SMALL((Tableau1[Société]=$A6)*(Tableau1[Solde nombre]=0)*(Tableau1[Date]),COUNTA(Tableau1[Société])-COUNTIFS(Tableau1[Société],$A6,Tableau1[Solde nombre],"0")+D$1),"")="",LOOKUP(2,1/(Tableau1[Société]=$A6),Tableau1[Solde nombre])>0),TODAY(),SMALL((Tableau1[Société]=$A6)*(Tableau1[Solde nombre]=0)*(Tableau1[Date]),COUNTA(Tableau1[Société])-COUNTIFS(Tableau1[Société],$A6,Tableau1[Solde nombre],"0")+D$1)))) ->  | F6: =IF(E6="","",IF(E6=TODAY(),"",IF(AND(IFERROR(SMALL((Tableau1[Société]=$A6)*(Tableau1[Solde nombre]=0)*(Tableau1[Date]),COUNTA(Tableau1[Société])-COUNTIFS(Tableau1[Société],$A6,Tableau1[Solde nombre],"0")+E$1),"")="",LOOKUP(2,1/(Tableau1[Société]=$A6),Tableau1[Solde nombre])>0),TODAY(),SMALL((Tableau1[Société]=$A6)*(Tableau1[Solde nombre]=0)*(Tableau1[Date]),COUNTA(Tableau1[Société])-COUNTIFS(Tableau1[Société],$A6,Tableau1[Solde nombre],"0")+E$1)))) ->  | G6: =IF(F6="","",IF(F6=TODAY(),"",IF(AND(IFERROR(SMALL((Tableau1[Société]=$A6)*(Tableau1[Solde nombre]=0)*(Tableau1[Date]),COUNTA(Tableau1[Société])-COUNTIFS(Tableau1[Société],$A6,Tableau1[Solde nombre],"0")+F$1),"")="",LOOKUP(2,1/(Tableau1[Société]=$A6),Tableau1[Solde nombre])>0),TODAY(),SMALL((Tableau1[Société]=$A6)*(Tableau1[Solde nombre]=0)*(Tableau1[Date]),COUNTA(Tableau1[Société])-COUNTIFS(Tableau1[Société],$A6,Tableau1[Solde nombre],"0")+F$1)))) -> 
A7: =INDEX(Tableau1[Société],MATCH(0,COUNTIF($A$1:A6,Tableau1[Société]),0)) -> Schoups | B7: =IFERROR(SMALL((Tableau1[Société]=$A7)*(Tableau1[Solde nombre]=0)*(Tableau1[Date]),COUNTA(Tableau1[Société])-COUNTIFS(Tableau1[Société],$A7,Tableau1[Solde nombre],"0" )+B$1),TODAY()) -> 2022-07-06 | C7: =IF(B7=TODAY(),"",IF(AND(IFERROR(SMALL((Tableau1[Société]=$A7)*(Tableau1[Solde nombre]=0)*(Tableau1[Date]),COUNTA(Tableau1[Société])-COUNTIFS(Tableau1[Société],$A7,Tableau1[Solde nombre],"0")+C$1),"")="",LOOKUP(2,1/(Tableau1[Société]=$A7),Tableau1[Solde nombre])>0),TODAY(),SMALL((Tableau1[Société]=$A7)*(Tableau1[Solde nombre]=0)*(Tableau1[Date]),COUNTA(Tableau1[Société])-COUNTIFS(Tableau1[Société],$A7,Tableau1[Solde nombre],"0")+C$1))) -> 2022-10-25 | D7: =IF(C7="","",IF(C7=TODAY(),"",IF(AND(IFERROR(SMALL((Tableau1[Société]=$A7)*(Tableau1[Solde nombre]=0)*(Tableau1[Date]),COUNTA(Tableau1[Société])-COUNTIFS(Tableau1[Société],$A7,Tableau1[Solde nombre],"0")+C$1),"")="",LOOKUP(2,1/(Tableau1[Société]=$A7),Tableau1[Solde nombre])>0),TODAY(),SMALL((Tableau1[Société]=$A7)*(Tableau1[Solde nombre]=0)*(Tableau1[Date]),COUNTA(Tableau1[Société])-COUNTIFS(Tableau1[Société],$A7,Tableau1[Solde nombre],"0")+C$1)))) ->  | E7: =IF(D7="","",IF(D7=TODAY(),"",IF(AND(IFERROR(SMALL((Tableau1[Société]=$A7)*(Tableau1[Solde nombre]=0)*(Tableau1[Date]),COUNTA(Tableau1[Société])-COUNTIFS(Tableau1[Société],$A7,Tableau1[Solde nombre],"0")+D$1),"")="",LOOKUP(2,1/(Tableau1[Société]=$A7),Tableau1[Solde nombre])>0),TODAY(),SMALL((Tableau1[Société]=$A7)*(Tableau1[Solde nombre]=0)*(Tableau1[Date]),COUNTA(Tableau1[Société])-COUNTIFS(Tableau1[Société],$A7,Tableau1[Solde nombre],"0")+D$1)))) ->  | F7: =IF(E7="","",IF(E7=TODAY(),"",IF(AND(IFERROR(SMALL((Tableau1[Société]=$A7)*(Tableau1[Solde nombre]=0)*(Tableau1[Date]),COUNTA(Tableau1[Société])-COUNTIFS(Tableau1[Société],$A7,Tableau1[Solde nombre],"0")+E$1),"")="",LOOKUP(2,1/(Tableau1[Société]=$A7),Tableau1[Solde nombre])>0),TODAY(),SMALL((Tableau1[Société]=$A7)*(Tableau1[Solde nombre]=0)*(Tableau1[Date]),COUNTA(Tableau1[Société])-COUNTIFS(Tableau1[Société],$A7,Tableau1[Solde nombre],"0")+E$1)))) ->  | G7: =IF(F7="","",IF(F7=TODAY(),"",IF(AND(IFERROR(SMALL((Tableau1[Société]=$A7)*(Tableau1[Solde nombre]=0)*(Tableau1[Date]),COUNTA(Tableau1[Société])-COUNTIFS(Tableau1[Société],$A7,Tableau1[Solde nombre],"0")+F$1),"")="",LOOKUP(2,1/(Tableau1[Société]=$A7),Tableau1[Solde nombre])>0),TODAY(),SMALL((Tableau1[Société]=$A7)*(Tableau1[Solde nombre]=0)*(Tableau1[Date]),COUNTA(Tableau1[Société])-COUNTIFS(Tableau1[Société],$A7,Tableau1[Solde nombre],"0")+F$1)))) -> 
A8: =INDEX(Tableau1[Société],MATCH(0,COUNTIF($A$1:A7,Tableau1[Société]),0)) -> Klary | B8: =IFERROR(SMALL((Tableau1[Société]=$A8)*(Tableau1[Solde nombre]=0)*(Tableau1[Date]),COUNTA(Tableau1[Société])-COUNTIFS(Tableau1[Société],$A8,Tableau1[Solde nombre],"0" )+B$1),TODAY()) -> 2022-10-25 | C8: =IF(B8=TODAY(),"",IF(AND(IFERROR(SMALL((Tableau1[Société]=$A8)*(Tableau1[Solde nombre]=0)*(Tableau1[Date]),COUNTA(Tableau1[Société])-COUNTIFS(Tableau1[Société],$A8,Tableau1[Solde nombre],"0")+C$1),"")="",LOOKUP(2,1/(Tableau1[Société]=$A8),Tableau1[Solde nombre])>0),TODAY(),SMALL((Tableau1[Société]=$A8)*(Tableau1[Solde nombre]=0)*(Tableau1[Date]),COUNTA(Tableau1[Société])-COUNTIFS(Tableau1[Société],$A8,Tableau1[Solde nombre],"0")+C$1))) ->  | D8: =IF(C8="","",IF(C8=TODAY(),"",IF(AND(IFERROR(SMALL((Tableau1[Société]=$A8)*(Tableau1[Solde nombre]=0)*(Tableau1[Date]),COUNTA(Tableau1[Société])-COUNTIFS(Tableau1[Société],$A8,Tableau1[Solde nombre],"0")+C$1),"")="",LOOKUP(2,1/(Tableau1[Société]=$A8),Tableau1[Solde nombre])>0),TODAY(),SMALL((Tableau1[Société]=$A8)*(Tableau1[Solde nombre]=0)*(Tableau1[Date]),COUNTA(Tableau1[Société])-COUNTIFS(Tableau1[Société],$A8,Tableau1[Solde nombre],"0")+C$1)))) ->  | E8: =IF(D8="","",IF(D8=TODAY(),"",IF(AND(IFERROR(SMALL((Tableau1[Société]=$A8)*(Tableau1[Solde nombre]=0)*(Tableau1[Date]),COUNTA(Tableau1[Société])-COUNTIFS(Tableau1[Société],$A8,Tableau1[Solde nombre],"0")+D$1),"")="",LOOKUP(2,1/(Tableau1[Société]=$A8),Tableau1[Solde nombre])>0),TODAY(),SMALL((Tableau1[Société]=$A8)*(Tableau1[Solde nombre]=0)*(Tableau1[Date]),COUNTA(Tableau1[Société])-COUNTIFS(Tableau1[Société],$A8,Tableau1[Solde nombre],"0")+D$1)))) ->  | F8: =IF(E8="","",IF(E8=TODAY(),"",IF(AND(IFERROR(SMALL((Tableau1[Société]=$A8)*(Tableau1[Solde nombre]=0)*(Tableau1[Date]),COUNTA(Tableau1[Société])-COUNTIFS(Tableau1[Société],$A8,Tableau1[Solde nombre],"0")+E$1),"")="",LOOKUP(2,1/(Tableau1[Société]=$A8),Tableau1[Solde nombre])>0),TODAY(),SMALL((Tableau1[Société]=$A8)*(Tableau1[Solde nombre]=0)*(Tableau1[Date]),COUNTA(Tableau1[Société])-COUNTIFS(Tableau1[Société],$A8,Tableau1[Solde nombre],"0")+E$1)))) ->  | G8: =IF(F8="","",IF(F8=TODAY(),"",IF(AND(IFERROR(SMALL((Tableau1[Société]=$A8)*(Tableau1[Solde nombre]=0)*(Tableau1[Date]),COUNTA(Tableau1[Société])-COUNTIFS(Tableau1[Société],$A8,Tableau1[Solde nombre],"0")+F$1),"")="",LOOKUP(2,1/(Tableau1[Société]=$A8),Tableau1[Solde nombre])>0),TODAY(),SMALL((Tableau1[Société]=$A8)*(Tableau1[Solde nombre]=0)*(Tableau1[Date]),COUNTA(Tableau1[Société])-COUNTIFS(Tableau1[Société],$A8,Tableau1[Solde nombre],"0")+F$1)))) -> 
A9: =INDEX(Tableau1[Société],MATCH(0,COUNTIF($A$1:A8,Tableau1[Société]),0)) -> Shmorgul | B9: =IFERROR(SMALL((Tableau1[Société]=$A9)*(Tableau1[Solde nombre]=0)*(Tableau1[Date]),COUNTA(Tableau1[Société])-COUNTIFS(Tableau1[Société],$A9,Tableau1[Solde nombre],"0" )+B$1),TODAY()) -> 2022-10-25 | C9: =IF(B9=TODAY(),"",IF(AND(IFERROR(SMALL((Tableau1[Société]=$A9)*(Tableau1[Solde nombre]=0)*(Tableau1[Date]),COUNTA(Tableau1[Société])-COUNTIFS(Tableau1[Société],$A9,Tableau1[Solde nombre],"0")+C$1),"")="",LOOKUP(2,1/(Tableau1[Société]=$A9),Tableau1[Solde nombre])>0),TODAY(),SMALL((Tableau1[Société]=$A9)*(Tableau1[Solde nombre]=0)*(Tableau1[Date]),COUNTA(Tableau1[Société])-COUNTIFS(Tableau1[Société],$A9,Tableau1[Solde nombre],"0")+C$1))) ->  | D9: =IF(C9="","",IF(C9=TODAY(),"",IF(AND(IFERROR(SMALL((Tableau1[Société]=$A9)*(Tableau1[Solde nombre]=0)*(Tableau1[Date]),COUNTA(Tableau1[Société])-COUNTIFS(Tableau1[Société],$A9,Tableau1[Solde nombre],"0")+C$1),"")="",LOOKUP(2,1/(Tableau1[Société]=$A9),Tableau1[Solde nombre])>0),TODAY(),SMALL((Tableau1[Société]=$A9)*(Tableau1[Solde nombre]=0)*(Tableau1[Date]),COUNTA(Tableau1[Société])-COUNTIFS(Tableau1[Société],$A9,Tableau1[Solde nombre],"0")+C$1)))) ->  | E9: =IF(D9="","",IF(D9=TODAY(),"",IF(AND(IFERROR(SMALL((Tableau1[Société]=$A9)*(Tableau1[Solde nombre]=0)*(Tableau1[Date]),COUNTA(Tableau1[Société])-COUNTIFS(Tableau1[Société],$A9,Tableau1[Solde nombre],"0")+D$1),"")="",LOOKUP(2,1/(Tableau1[Société]=$A9),Tableau1[Solde nombre])>0),TODAY(),SMALL((Tableau1[Société]=$A9)*(Tableau1[Solde nombre]=0)*(Tableau1[Date]),COUNTA(Tableau1[Société])-COUNTIFS(Tableau1[Société],$A9,Tableau1[Solde nombre],"0")+D$1)))) ->  | F9: =IF(E9="","",IF(E9=TODAY(),"",IF(AND(IFERROR(SMALL((Tableau1[Société]=$A9)*(Tableau1[Solde nombre]=0)*(Tableau1[Date]),COUNTA(Tableau1[Société])-COUNTIFS(Tableau1[Société],$A9,Tableau1[Solde nombre],"0")+E$1),"")="",LOOKUP(2,1/(Tableau1[Société]=$A9),Tableau1[Solde nombre])>0),TODAY(),SMALL((Tableau1[Société]=$A9)*(Tableau1[Solde nombre]=0)*(Tableau1[Date]),COUNTA(Tableau1[Société])-COUNTIFS(Tableau1[Société],$A9,Tableau1[Solde nombre],"0")+E$1)))) ->  | G9: =IF(F9="","",IF(F9=TODAY(),"",IF(AND(IFERROR(SMALL((Tableau1[Société]=$A9)*(Tableau1[Solde nombre]=0)*(Tableau1[Date]),COUNTA(Tableau1[Société])-COUNTIFS(Tableau1[Société],$A9,Tableau1[Solde nombre],"0")+F$1),"")="",LOOKUP(2,1/(Tableau1[Société]=$A9),Tableau1[Solde nombre])>0),TODAY(),SMALL((Tableau1[Société]=$A9)*(Tableau1[Solde nombre]=0)*(Tableau1[Date]),COUNTA(Tableau1[Société])-COUNTIFS(Tableau1[Société],$A9,Tableau1[Solde nombre],"0")+F$1)))) -> 
A10: =INDEX(Tableau1[Société],MATCH(0,COUNTIF($A$1:A9,Tableau1[Société]),0)) -> Plastoc | B10: =IFERROR(SMALL((Tableau1[Société]=$A10)*(Tableau1[Solde nombre]=0)*(Tableau1[Date]),COUNTA(Tableau1[Société])-COUNTIFS(Tableau1[Société],$A10,Tableau1[Solde nombre],"0" )+B$1),TODAY()) -> 2022-10-12 | C10: =IF(B10=TODAY(),"",IF(AND(IFERROR(SMALL((Tableau1[Société]=$A10)*(Tableau1[Solde nombre]=0)*(Tableau1[Date]),COUNTA(Tableau1[Société])-COUNTIFS(Tableau1[Société],$A10,Tableau1[Solde nombre],"0")+C$1),"")="",LOOKUP(2,1/(Tableau1[Société]=$A10),Tableau1[Solde nombre])>0),TODAY(),SMALL((Tableau1[Société]=$A10)*(Tableau1[Solde nombre]=0)*(Tableau1[Date]),COUNTA(Tableau1[Société])-COUNTIFS(Tableau1[Société],$A10,Tableau1[Solde nombre],"0")+C$1))) -> 2022-10-12 | D10: =IF(C10="","",IF(C10=TODAY(),"",IF(AND(IFERROR(SMALL((Tableau1[Société]=$A10)*(Tableau1[Solde nombre]=0)*(Tableau1[Date]),COUNTA(Tableau1[Société])-COUNTIFS(Tableau1[Société],$A10,Tableau1[Solde nombre],"0")+C$1),"")="",LOOKUP(2,1/(Tableau1[Société]=$A10),Tableau1[Solde nombre])>0),TODAY(),SMALL((Tableau1[Société]=$A10)*(Tableau1[Solde nombre]=0)*(Tableau1[Date]),COUNTA(Tableau1[Société])-COUNTIFS(Tableau1[Société],$A10,Tableau1[Solde nombre],"0")+C$1)))) -> 2022-10-12 | E10: =IF(D10="","",IF(D10=TODAY(),"",IF(AND(IFERROR(SMALL((Tableau1[Société]=$A10)*(Tableau1[Solde nombre]=0)*(Tableau1[Date]),COUNTA(Tableau1[Société])-COUNTIFS(Tableau1[Société],$A10,Tableau1[Solde nombre],"0")+D$1),"")="",LOOKUP(2,1/(Tableau1[Société]=$A10),Tableau1[Solde nombre])>0),TODAY(),SMALL((Tableau1[Société]=$A10)*(Tableau1[Solde nombre]=0)*(Tableau1[Date]),COUNTA(Tableau1[Société])-COUNTIFS(Tableau1[Société],$A10,Tableau1[Solde nombre],"0")+D$1)))) -> 2022-10-13 | F10: =IF(E10="","",IF(E10=TODAY(),"",IF(AND(IFERROR(SMALL((Tableau1[Société]=$A10)*(Tableau1[Solde nombre]=0)*(Tableau1[Date]),COUNTA(Tableau1[Société])-COUNTIFS(Tableau1[Société],$A10,Tableau1[Solde nombre],"0")+E$1),"")="",LOOKUP(2,1/(Tableau1[Société]=$A10),Tableau1[Solde nombre])>0),TODAY(),SMALL((Tableau1[Société]=$A10)*(Tableau1[Solde nombre]=0)*(Tableau1[Date]),COUNTA(Tableau1[Société])-COUNTIFS(Tableau1[Société],$A10,Tableau1[Solde nombre],"0")+E$1)))) -> 2022-10-25 | G10: =IF(F10="","",IF(F10=TODAY(),"",IF(AND(IFERROR(SMALL((Tableau1[Société]=$A10)*(Tableau1[Solde nombre]=0)*(Tableau1[Date]),COUNTA(Tableau1[Société])-COUNTIFS(Tableau1[Société],$A10,Tableau1[Solde nombre],"0")+F$1),"")="",LOOKUP(2,1/(Tableau1[Société]=$A10),Tableau1[Solde nombre])>0),TODAY(),SMALL((Tableau1[Société]=$A10)*(Tableau1[Solde nombre]=0)*(Tableau1[Date]),COUNTA(Tableau1[Société])-COUNTIFS(Tableau1[Société],$A10,Tableau1[Solde nombre],"0")+F$1)))) ->  | I10: => rectifier formule, 1 vente en trop, le 25-10 doit être en E10

Sheet Nbre jours
A1: Possession | B1: Nombre Jours 1 | C1: Nombre Jours 2 | D1: Nombre Jours 3 | E1: Nombre Jours 4 | F1: Nombre Jours 5
A2: =Achats!A2 -> Bidule | B2: =Ventes!B2-Achats!B2+1 -> 1392 | C2: =IFERROR(Ventes!C2-Achats!C2+1,"") -> 723 | D2: =IFERROR(Ventes!D2-Achats!D2+1,"") ->  | E2: =IFERROR(Ventes!E2-Achats!E2+1,"") ->  | F2: =IFERROR(Ventes!F2-Achats!F2+1,"") -> 
A3: =Achats!A3 -> Chose | B3: =Ventes!B3-Achats!B3+1 -> 1518 | C3: =IFERROR(Ventes!C3-Achats!C3+1,"") ->  | D3: =IFERROR(Ventes!D3-Achats!D3+1,"") ->  | E3: =IFERROR(Ventes!E3-Achats!E3+1,"") ->  | F3: =IFERROR(Ventes!F3-Achats!F3+1,"") -> 
A4: =Achats!A4 -> Machin | B4: =Ventes!B4-Achats!B4+1 -> 258 | C4: =IFERROR(Ventes!C4-Achats!C4+1,"") -> 175 | D4: =IFERROR(Ventes!D4-Achats!D4+1,"") ->  | E4: =IFERROR(Ventes!E4-Achats!E4+1,"") ->  | F4: =IFERROR(Ventes!F4-Achats!F4+1,"") -> 
A5: =Achats!A5 -> Tatol | B5: =Ventes!B5-Achats!B5+1 -> 1411 | C5: =IFERROR(Ventes!C5-Achats!C5+1,"") ->  | D5: =IFERROR(Ventes!D5-Achats!D5+1,"") ->  | E5: =IFERROR(Ventes!E5-Achats!E5+1,"") ->  | F5: =IFERROR(Ventes!F5-Achats!F5+1,"") -> 
A6: =Achats!A6 -> Tasle | B6: =Ventes!B6-Achats!B6+1 -> 1335 | C6: =IFERROR(Ventes!C6-Achats!C6+1,"") ->  | D6: =IFERROR(Ventes!D6-Achats!D6+1,"") ->  | E6: =IFERROR(Ventes!E6-Achats!E6+1,"") ->  | F6: =IFERROR(Ventes!F6-Achats!F6+1,"") -> 
A7: =Achats!A7 -> Schoups | B7: =Ventes!B7-Achats!B7+1 -> 1 | C7: =IFERROR(Ventes!C7-Achats!C7+1,"") -> 6 | D7: =IFERROR(Ventes!D7-Achats!D7+1,"") ->  | E7: =IFERROR(Ventes!E7-Achats!E7+1,"") ->  | F7: =IFERROR(Ventes!F7-Achats!F7+1,"") -> 
A8: =Achats!A8 -> Klary | B8: =Ventes!B8-Achats!B8+1 -> 30 | C8: =IFERROR(Ventes!C8-Achats!C8+1,"") ->  | D8: =IFERROR(Ventes!D8-Achats!D8+1,"") ->  | E8: =IFERROR(Ventes!E8-Achats!E8+1,"") ->  | F8: =IFERROR(Ventes!F8-Achats!F8+1,"") -> 
A9: =Achats!A9 -> Shmorgul | B9: =Ventes!B9-Achats!B9+1 -> 23 | C9: =IFERROR(Ventes!C9-Achats!C9+1,"") ->  | D9: =IFERROR(Ventes!D9-Achats!D9+1,"") ->  | E9: =IFERROR(Ventes!E9-Achats!E9+1,"") ->  | F9: =IFERROR(Ventes!F9-Achats!F9+1,"") -> 
A10: =Achats!A10 -> Plastoc | B10: =Ventes!B10-Achats!B10+1 -> 1 | C10: =IFERROR(Ventes!C10-Achats!C10+1,"") -> 0 | D10: =IFERROR(Ventes!D10-Achats!D10+1,"") -> 0 | E10: =IFERROR(Ventes!E10-Achats!E10+1,"") -> 1 | F10: =IFERROR(Ventes!F10-Achats!F10+1,"") -> 10

Sheet Poss Tot
A1: Société | B1: Durée totale de possession (jours)
A2: =Achats!A2 -> Bidule | B2: =SUM('Nbre jours'!B2:ZZ2) -> 2115
A3: =Achats!A3 -> Chose | B3: =SUM('Nbre jours'!B3:ZZ3) -> 1518
A4: =Achats!A4 -> Machin | B4: =SUM('Nbre jours'!B4:ZZ4) -> 433
A5: =Achats!A5 -> Tatol | B5: =SUM('Nbre jours'!B5:ZZ5) -> 1411
A6: =Achats!A6 -> Tasle | B6: =SUM('Nbre jours'!B6:ZZ6) -> 1335
A7: =Achats!A7 -> Schoups | B7: =SUM('Nbre jours'!B7:ZZ7) -> 7
A8: =Achats!A8 -> Klary | B8: =SUM('Nbre jours'!B8:ZZ8) -> 30
A9: =Achats!A9 -> Shmorgul | B9: =SUM('Nbre jours'!B9:ZZ9) -> 23
A10: =Achats!A10 -> Plastoc | B10: =SUM('Nbre jours'!B10:ZZ10) -> 12

Sheet Inter
A1: Intervalles | B1: Inter 1 | C1: Inter 2 | D1: Inter 3
A2: =Achats!A2 -> Bidule | B2: =IFERROR(Achats!C2-Ventes!B2-1,"") -> 0 | C2: =IFERROR(Achats!D2-Ventes!C2-1,"") ->  | D2: =IFERROR(Achats!E2-Ventes!D2-1,"") -> 
A3: =Achats!A3 -> Chose | B3: =IFERROR(Achats!C3-Ventes!B3-1,"") ->  | C3: =IFERROR(Achats!D3-Ventes!C3-1,"") ->  | D3: =IFERROR(Achats!E3-Ventes!D3-1,"") -> 
A4: =Achats!A4 -> Machin | B4: =IFERROR(Achats!C4-Ventes!B4-1,"") -> 1082 | C4: =IFERROR(Achats!D4-Ventes!C4-1,"") ->  | D4: =IFERROR(Achats!E4-Ventes!D4-1,"") -> 
A5: =Achats!A5 -> Tatol | B5: =IFERROR(Achats!C5-Ventes!B5-1,"") ->  | C5: =IFERROR(Achats!D5-Ventes!C5-1,"") ->  | D5: =IFERROR(Achats!E5-Ventes!D5-1,"") -> 
A6: =Achats!A6 -> Tasle | B6: =IFERROR(Achats!C6-Ventes!B6-1,"") ->  | C6: =IFERROR(Achats!D6-Ventes!C6-1,"") ->  | D6: =IFERROR(Achats!E6-Ventes!D6-1,"") -> 
A7: =Achats!A7 -> Schoups | B7: =IFERROR(Achats!C7-Ventes!B7-1,"") -> 105 | C7: =IFERROR(Achats!D7-Ventes!C7-1,"") ->  | D7: =IFERROR(Achats!E7-Ventes!D7-1,"") -> 
A8: =Achats!A8 -> Klary | B8: =IFERROR(Achats!C8-Ventes!B8-1,"") ->  | C8: =IFERROR(Achats!D8-Ventes!C8-1,"") ->  | D8: =IFERROR(Achats!E8-Ventes!D8-1,"") -> 
A9: =Achats!A9 -> Shmorgul | B9: =IFERROR(Achats!C9-Ventes!B9-1,"") ->  | C9: =IFERROR(Achats!D9-Ventes!C9-1,"") ->  | D9: =IFERROR(Achats!E9-Ventes!D9-1,"") -> 
A10: =Achats!A10 -> Plastoc | B10: =IFERROR(Achats!C10-Ventes!B10-1,"") -> 0 | C10: =IFERROR(Achats!D10-Ventes!C10-1,"") -> 0 | D10: =IFERROR(Achats!E10-Ventes!D10-1,"") -> 0

Sheet Récap
A1: Société | B1: Date achat 1 | C1: Nombre Jours 1 | D1: Inter 1 | E1: Nombre Jours 2 | F1: Inter 2 | G1: Nombre Jours 3 | H1: Inter 3
A2: =Achats!A2 -> Bidule | B2: =Achats!B2 -> 2017-01-10 | C2: ='Nbre jours'!B2 -> 1392 | D2: =Inter!B2 -> 0 | E2: ='Nbre jours'!C2 -> 723
A3: =Achats!A3 -> Chose | B3: =Achats!B3 -> 2017-04-27 | C3: ='Nbre jours'!B3 -> 1518 | D3: =Inter!B3 ->  | E3: ='Nbre jours'!C3 -> 
A4: =Achats!A4 -> Machin | B4: =Achats!B4 -> 2018-09-02 | C4: ='Nbre jours'!B4 -> 258 | D4: =Inter!B4 -> 1082 | E4: ='Nbre jours'!C4 -> 175
A5: =Achats!A5 -> Tatol | B5: =Achats!B5 -> 2018-12-15 | C5: ='Nbre jours'!B5 -> 1411 | D5: =Inter!B5 ->  | E5: ='Nbre jours'!C5 -> 
A6: =Achats!A6 -> Tasle | B6: =Achats!B6 -> 2019-03-01 | C6: ='Nbre jours'!B6 -> 1335 | D6: =Inter!B6 ->  | E6: ='Nbre jours'!C6 -> 
A7: =Achats!A7 -> Schoups | B7: =Achats!B7 -> 2022-07-06 | C7: ='Nbre jours'!B7 -> 1 | D7: =Inter!B7 -> 105 | E7: ='Nbre jours'!C7 -> 6
A8: =Achats!A8 -> Klary | B8: =Achats!B8 -> 2022-09-26 | C8: ='Nbre jours'!B8 -> 30 | D8: =Inter!B8 ->  | E8: ='Nbre jours'!C8 -> 
A9: =Achats!A9 -> Shmorgul | B9: =Achats!B9 -> 2022-10-03 | C9: ='Nbre jours'!B9 -> 23 | D9: =Inter!B9 ->  | E9: ='Nbre jours'!C9 -> 
A10: =Achats!A10 -> Plastoc | B10: =Achats!B10 -> 2022-10-12 | C10: ='Nbre jours'!B10 -> 1 | D10: =Inter!B10 -> 0 | E10: ='Nbre jours'!C10 -> 0

Sheet Graphique
G1: MAX qui se met à jour à l'ouverture du fichier ;
B2: Min = | C2: =MIN(Recap[Date achat 1]) -> 42745 | D2: =C2 -> 2017-01-10 | G2: =TODAY() -> 44859
B3: Max = | C3: =TODAY()+300 -> 45159 | D3: =C3 -> 2023-08-21 | G3: =G2 -> 2022-10-25 | I3: (code VBA sur ThisWorkbook)
B4: => changeables en direct (code VBA sur feuille 8 "Graphique")
